Cogmind - Beta 15 @@@ ROGUE MODE // 2025.08.28 @ 11:01:31 Player: star Result: Destroyed by L-31 Rogue with Katana Performance ------------- Evolutions (2) 1000 Regions Visited (6) 1200 Robots Destroyed (131) 655 Value Destroyed (4889) 4889 Prototype IDs (4) 80 Alien Tech Used (0) 0 Bonus (2076) 2076 TOTAL SCORE: 9900 Bonus ------- High Alert Combat Kills 956 Follower Combat Kills 420 Entered Garrisons 200 Used RIF Installer 500 Cogmind --------- Core Integrity 0/550 Matter 280/300 Energy 38/100 System Corruption 2% Temperature Cool (34) Movement Walking (105) Location -8/Materials Parts ------- > --- POWER (1) -------- (None) > --- PROPULSION (4) --- Carbon-fiber Leg VSS Leg > --- UTILITY (3) ------ Large Storage Unit Relay Coupler [NC] (37) > --- WEAPON (3) ------- Advanced Beam Rifle > --- INVENTORY (15) --- Carbon-fiber Leg Improved Heat Sink Advanced Heat Sink Advanced Heat Sink High-capacity Matter Pod (200) Experimental Sensor Array Advanced Targeting Computer Improved Target Analyzer Relay Coupler [NC] (32) Dynamic Insulation System Trap Extractor (4/4 Tiamat Bomb) Recalibrator Shotgun Mining Laser Peak State ------------ > --- POWER ------------ Nuclear Core > --- PROPULSION ------- Carbon-fiber Leg VSS Leg VSS Leg VSS Leg > --- UTILITY ---------- Large Storage Unit Improved Particle Charger Relay Coupler [NC] > --- WEAPON ----------- Advanced Beam Rifle Advanced Beam Rifle High-powered Shotgun > --- INVENTORY -------- Carbon-fiber Leg Carbon-fiber Leg Carbon-fiber Leg Improved Heat Sink Advanced Heat Sink High-capacity Matter Pod Experimental Sensor Array Advanced Targeting Computer Improved Target Analyzer Relay Coupler [NC] Dynamic Insulation System Trap Extractor Recalibrator Shock Bomb Launcher Mining Laser [Rating: 38] Favorites ----------- Power Nuclear Core Engine Cooled Ion Engine Power Core Nuclear Core Propulsion VSS Leg Leg VSS Leg Wheel Compact Wheel Utility Large Storage Unit Device Improved Heat Sink Storage Large Storage Unit Processor Machine Analyzer Hackware Relay Coupler [NC] Protection Propulsion Shielding Weapon High-powered Shotgun Energy Gun Advanced Beam Rifle Ballistic Gun High-powered Shotgun Launcher Shock Bomb Launcher Special Weapon Mining Laser Special Melee Weapon Datajack Build | -11 -10 -10 -9 -8 -8 -8 ------- Run | Yrd Mat Min Mat Mat Gar Mat Slots Evolved 4 | . . . 2 2 . . Power . | . . . . . . . Propulsion 2 | . . . 1 1 . . Utility 1 | . . . 1 . . . Weapon 1 | . . . . 1 . . Parts Attached 74 | 6 7 . 20 13 18 10 Power 8 | 1 1 . 3 . 2 1 Engine 4 | 1 1 . 2 . . . Core 4 | . . . 1 . 2 1 Reactor . | . . . . . . . Propulsion 26 | 2 2 . 5 7 7 3 Treads . | . . . . . . . Leg 22 | . . . 5 7 7 3 Wheel 4 | 2 2 . . . . . Hover . | . . . . . . . Flight . | . . . . . . . Utility 15 | 1 2 . 6 1 3 2 Device 10 | . 1 . 4 1 3 1 Storage 2 | 1 1 . . . . . Processor 1 | . . . 1 . . . Hackware 1 | . . . . . . 1 Protection 1 | . . . 1 . . . Artifact . | . . . . . . . Weapon 25 | 2 2 . 6 5 6 4 Energy Gun 9 | 2 . . 2 . 3 2 Energy Cannon . | . . . . . . . Ballistic Gun 13 | . 1 . 4 4 3 1 Ballistic Cannon . | . . . . . . . Launcher 1 | . . . . . . 1 Special Weapon 1 | . . . . 1 . . Impact Weapon . | . . . . . . . Slashing Weapon . | . . . . . . . Piercing Weapon . | . . . . . . . Special Melee Weapon 1 | . 1 . . . . . Unidentified Prototypes 3 | . . . 2 . . 1 Parts Lost 35 | . 3 . 6 3 7 16 Power 5 | . . . 1 1 1 2 Propulsion 13 | . 2 . 2 1 2 6 Utility 7 | . . . 3 1 1 2 Weapon 10 | . 1 . . . 3 6 Highest Loss Streak 5 | . 2 . 3 2 2 5 To Critical Strikes 1 | . . . 1 . . . Average Backups 13 | . 6 14 14 14 14 13 Power 1 | . 1 2 1 1 . . Propulsion 1 | . 2 4 2 1 1 1 Utility 6 | . 2 5 5 5 6 9 Weapon 3 | . 1 1 4 4 4 2 Tool/Special . | . . . . . . . Unused Backups 16 | . . 2 3 . 2 9 Power 1 | . . . 1 . . . Propulsion 1 | . . . . . . 1 Utility 10 | . . 1 1 . . 8 Weapon 4 | . . 1 1 . 2 . Tool/Special . | . . . . . . . Average Slot Usage (%) 96 | . 96 100 90 98 99 92 Engine 6 | . 14 14 5 9 3 . Core 3 | . . . 4 . 5 8 Leg 26 | . . . 20 35 35 32 Wheel 6 | . 27 28 8 . . . Device 9 | . 11 14 14 8 8 5 Storage 10 | . 14 14 11 9 9 9 Processor 5 | . . . 3 9 9 . Hackware 1 | . . . . . . 8 Energy Gun 10 | . 16 14 7 4 9 16 Ballistic Gun 14 | . 12 14 14 21 13 8 Special Weapon 1 | . . . . . 3 . Peak Build Rating 38 | 6 9 10 23 34 37 38 Average Rating 26 | 4 7 9 19 30 33 33 On Entrance 16 | . 6 9 10 23 31 36 Naked Turns . | . . . . . . . Heaviest Build 42 | 12 29 29 39 42 39 38 Greatest Support 64 | 26 32 32 39 64 64 57 Greatest Overweight (x) 2 | 1 1 . 2 1 1 1 Average Overweight (x) . | . . . . . . . Largest Inventory Capacity 15 | 8 15 15 15 15 15 15 Average Capacity 14 | 6 12 15 15 15 15 15 Most Carried 15 | 1 13 15 15 15 15 15 Average Carried 13 | . 7 14 14 14 14 13 Final Capacity 15 | 8 15 15 15 15 15 15 Final Carried 15 | 1 13 15 15 14 14 14 Class Distribution -------------------- 29% | Mutant 17% | Tank 15% | Scavenger-Skirmisher 8% | Gunner 7% | Scavenger-Gunner 6% | Commander-Skirmisher 6% | Scavenger-Tank 5% | Scavenger-Mutant 4% | Skirmisher Dominant Class ---------------- Mutant | -10/Materials Mutant | -10/Mines Mutant | -9/Materials Tank | -8/Materials Scavenger-Skirmisher | -8/Garrison Gunner | -8/Materials Resources | -11 -10 -10 -9 -8 -8 -8 ----------- Run | Yrd Mat Min Mat Mat Gar Mat Matter Collected 3097 | 213 157 138 486 831 823 449 Remotely . | . . . . . . . Salvage Created 5304 | . 327 34 774 1304 1147 1718 Parts 310 | . 16 3 48 82 75 86 Haulers Intercepted 8 | . . . 3 4 . 1 Recyclers Shooed 4 | . 1 . . . . 3 Parts Field Recycled . | . . . . . . . Retrieved Matter . | . . . . . . . Parts Self-Destructed . | . . . . . . . Prevented . | . . . . . . . Kills | -11 -10 -10 -9 -8 -8 -8 ------- Run | Yrd Mat Min Mat Mat Gar Mat Combat Hostiles Destroyed 112 | . 7 2 17 27 28 31 Guns 101 | . 7 2 17 27 28 20 AOE 7 | . . . . . . 7 Classes Destroyed 16 | . 4 . 2 7 2 1 Worker 3 | . . . . 1 . 2 Builder 2 | . . . . 1 . 1 Hauler 8 | . . . 3 4 . 1 Recycler 2 | . 1 . . . . 1 Mechanic 2 | . 1 . . . . 1 Operator 1 | . . . . 1 . . Watcher 1 | . . . . 1 . . Swarmer 22 | . 3 2 5 6 6 . Grunt 46 | . 4 . 7 12 5 18 Brawler 6 | . . . . 1 2 3 Duelist 2 | . . . . 1 . 1 Protector 1 | . . . . . . 1 Sentry 25 | . . . 5 6 10 4 Specialist 1 | . . . . . 1 . Hunter 6 | . . . . 1 1 4 Programmer 3 | . . . . . 3 . Best Kill Streak 13 | . 3 2 13 6 5 10 Combat Bots Only 8 | . 3 2 8 6 5 7 Max Kills in Single Turn 3 | . 1 1 2 2 2 3 Gunslinging 1 | . . . 1 . 1 1 Exploded 3 | . . . . . . 3 Melee . | . . . . . . . Uniques/NPCs Destroyed . | . . . . . . . Combat | -11 -10 -10 -9 -8 -8 -8 -------- Run | Yrd Mat Min Mat Mat Gar Mat Hostile Shots Fired 528 | . 49 5 118 97 128 131 Missed 140 | . 15 1 30 25 33 36 Hits 388 | . 34 4 88 72 95 95 Melee 4 | . . . . 2 . 2 Projectile 384 | . 34 4 88 70 95 93 Critical Strikes 21 | . 1 . 3 2 8 7 Damage Taken 5323 | . 338 28 973 767 1316 1901 Core 868 | . 97 . 210 45 162 354 Absorbed by Shields 399 | . . . 96 259 44 . Redirected to Shielding 41 | . . . 41 . . . Regen/Repaired (Parts) 66 | . . . . 66 . . Core Remaining (%) 69 | 100 . 61 47 . . . Volleys Fired 369 | . 34 5 65 80 103 82 Largest 3 | . 2 2 2 3 3 3 Hottest 147 | . 90 70 79 106 137 147 Shots Fired 833 | . 67 10 134 215 236 171 Gun 764 | . 67 10 134 206 200 147 Cannon . | . . . . . . . Launcher 13 | . . . . . . 13 Special 56 | . . . . 9 36 11 Kinetic 454 | . 26 5 74 175 119 55 Thermal 319 | . 34 5 60 40 84 96 Explosive . | . . . . . . . Electromagnetic 60 | . 7 . . . 33 20 Robot Hit Streak 17 | . 7 9 13 17 9 12 Robot Miss Streak 5 | . 3 1 4 4 5 5 Penetration Max . | . . . . . . . Secondary Targets 20 | . 1 . 4 4 7 4 Max Gunslinging Chain 1 | . 1 . 1 1 1 1 Shots Hit Robots 503 | . 43 6 93 132 127 102 Core Hits 269 | . 20 3 34 71 65 76 Critical Kills . | . . . . . . . Critical Parts Destroyed 4 | . . . 1 . 3 . Critical Strikes 18 | . 1 . 3 4 7 3 Burn 12 | . 1 . 2 3 3 3 Destroy 5 | . . . 1 1 3 . Corrupt 1 | . . . . . 1 . Melee Attacks 2 | . 2 . . . . . Impact . | . . . . . . . Slashing . | . . . . . . . Piercing . | . . . . . . . Sneak Attacks . | . . . . . . . Combat Hostiles . | . . . . . . . Follow-up Attacks . | . . . . . . . Damage Inflicted 9702 | . 478 61 1389 2348 2338 3088 Guns 8464 | . 475 61 1389 2348 2338 1853 Cannons . | . . . . . . . Explosions 1214 | . . . . . . 1214 Melee . | . . . . . . . Ramming 24 | . 3 . . . . 21 Kinetic 5123 | . 120 23 770 2085 1554 571 Thermal 2996 | . 290 38 619 263 414 1372 Explosive . | . . . . . . . Electromagnetic 1559 | . 65 . . . 370 1124 Impact . | . . . . . . . Slashing . | . . . . . . . Piercing . | . . . . . . . Highest Corruption 2 | . . . 2 . 1 2 Average Corruption 1 | . . . 1 . 1 1 Corruption Purged . | . . . . . . . Corruption Blocked . | . . . . . . . Effects 38 | . . . 12 . 16 10 Message Errors 11 | . . . 3 . 4 4 Matter Fused 8 | . . . 2 . 3 3 Energy Discharges 9 | . . . 3 . 6 . Data Loss (minor) 3 | . . . . . . 3 Misfires 6 | . . . 4 . 2 . Alerts 1 | . . . . . 1 . Overload Shots . | . . . . . . . Overflow Damage 30 | . . . . . . 30 Projectiles . | . . . . . . . Explosions 30 | . . . . . . 30 Melee . | . . . . . . . Knockbacks . | . . . . . . . Impact . | . . . . . . . Kinetic . | . . . . . . . Secondary . | . . . . . . . Self-Inflicted Damage 93 | . 1 . . . . 92 Shots 7 | . . . . . . 7 Rammed 1 | . 1 . . . . . Targets Rammed 4 | . 1 . . . . 3 Kicked 3 | . . . . . . 3 Crushed . | . . . . . . . Highest Temperature 438 | . 350 10 39 174 240 438 Average Temperature 82 | . 93 7 10 36 65 118 Received Heat Transfer 1822 | . 111 . 340 288 525 558 Effects 3 | . . . . . 3 . Interference 3 | . . . . . 3 . Siege Activations . | . . . . . . . Martial Activations . | . . . . . . . Shielding Activations . | . . . . . . . Robots Disrupted 1 | . . . . . . 1 Combat Hostiles 1 | . . . . . . 1 Robots Corrupted 3 | . . . . . . 3 Combat Hostiles 3 | . . . . . . 3 Parts Fried 4 | . . . . . 2 2 Impact Corruptions . | . . . . . . . Robots Melted 1 | . . . . . . 1 Combat Hostiles 1 | . . . . . . 1 Parts Melted 17 | . 1 . 9 . 4 3 Heat Transferred 7546 | . 925 111 1776 888 1239 2607 Parts Sabotaged . | . . . . . . . Parts Stolen . | . . . . . . . Parts Stripped . | . . . . . . . Power Chain Reactions 2 | . . . . . . 2 Alert | -11 -10 -10 -9 -8 -8 -8 ------- Run | Yrd Mat Min Mat Mat Gar Mat Maximum Alert Level 4 | . . . 1 1 4 4 Low Security (%) 42 | 100 100 100 78 50 5 . Level 1 18 | . . . 21 49 13 . Level 2 5 | . . . . . 18 3 Level 3 22 | . . . . . 29 87 Level 4 10 | . . . . . 33 9 Level 5 . | . . . . . . . High Security . | . . . . . . . Max Security . | . . . . . . . Peak Influence 1350 | . 50 122 267 312 1350 1128 Initial 657 | . . . 16 55 174 657 Average 440 | . 13 36 111 198 820 894 Influence Increases 4194 | . 189 174 564 806 1306 1155 Destroy 0b10 Robot/C 2600 | . 140 120 380 540 720 700 Destroy 0b10 Robot/NC 135 | . 10 . 25 40 15 45 Destroy Leader 524 | . 30 20 118 150 40 166 Allied During Kill 180 | . . 34 14 . 51 81 Successful Hack 69 | . 8 . 11 15 35 . Disable Machine 105 | . . . . 15 30 60 Anti-Garrison Action 300 | . . . . . 300 . Destroy Structure 131 | . 1 . 1 16 85 28 Partial Spotted 15 | . . . . 15 . . Lose Combat Pursuer 135 | . . . 15 15 30 75 Influence Decreases 3120 | . 189 132 474 669 225 1431 Entered New Map 891 | . . . 26 77 95 693 Time Decay 1730 | . 169 132 389 562 . 478 Lost Part 330 | . 20 . 50 30 70 160 Lost Ally 169 | . . . 9 . 60 100 Squads Dispatched 15 | . . . 2 3 . 10 Investigation 5 | . . . 2 1 . 2 Extermination . | . . . . . . . Reinforcement 7 | . . . . 2 . 5 Assault 3 | . . . . . . 3 Garrison . | . . . . . . . Intercept . | . . . . . . . Searches Triggered . | . . . . . . . Construction Impeded 2 | . . . . . . 2 Haulers Reinforced . | . . . . . . . Active Scanning Responses . | . . . . . . . Cargo Convoy Interrupts . | . . . . . . . Stealth | -11 -10 -10 -9 -8 -8 -8 --------- Run | Yrd Mat Min Mat Mat Gar Mat Distress Signals 13 | . . . . 5 2 6 Communications Jammed . | . . . . . . . Distress Signals . | . . . . . . . Times Spotted 186 | . 16 3 30 41 33 63 Peak Tracking Total 8 | . 5 3 6 6 6 8 Tactical Retreats 8 | . . . 1 1 1 5 Traps | -11 -10 -10 -9 -8 -8 -8 ------- Run | Yrd Mat Min Mat Mat Gar Mat Traps Triggered 7 | . 1 . 2 1 2 1 Indirectly . | . . . . . . . Trap Hack Attempts . | . . . . . . . Triggered . | . . . . . . . Disarmed . | . . . . . . . Reprogrammed . | . . . . . . . Reused . | . . . . . . . Traps Extracted . | . . . . . . . Installed . | . . . . . . . Triggered . | . . . . . . . Most Traps Carried 4 | . . . . . 4 4 Machines | -11 -10 -10 -9 -8 -8 -8 ---------- Run | Yrd Mat Min Mat Mat Gar Mat Machines Disabled 9 | . . . . 1 4 4 Max in Single Turn 1 | . . . . 1 1 1 Garrison Relay 2 | . . . . . 2 . Machines Repaired . | . . . . . . . Machines Dismantled . | . . . . . . . Machines Sabotaged . | . . . . . . . Overloaded Fab Kills . | . . . . . . . Hacking | -11 -10 -10 -9 -8 -8 -8 --------- Run | Yrd Mat Min Mat Mat Gar Mat Machines Accessed 17 | . 1 . 5 5 4 2 Terminals 12 | . 1 . 4 1 4 2 Fabricators . | . . . . . . . Repair Stations 1 | . . . . 1 . . Recycling Units 1 | . . . 1 . . . Scanalyzers 2 | . . . . 2 . . Garrison Access 1 | . . . . 1 . . Total Hacks 31 | . 2 . 12 9 5 3 Successful 12 | . 1 . 2 5 3 1 Failed 19 | . 1 . 10 4 2 2 Catastrophic 5 | . . . 4 1 . . Database Lockouts . | . . . . . . . Manual 14 | . 2 . 10 . . 2 Terminals 21 | . 2 . 10 1 5 3 Fabricators . | . . . . . . . Repair Stations 3 | . . . . 3 . . Recycling Units 2 | . . . 2 . . . Scanalyzers 4 | . . . . 4 . . Garrison Access 1 | . . . . 1 . . Terminal Hacks 7 | . 1 . 1 1 3 1 Open Door 1 | . . . . . 1 . Emergency Access Points 1 | . . . . . 1 . Recycling Unit Index 1 | . . . . . . 1 Scanalyzer Index 1 | . 1 . . . . . Hauler Manifests 2 | . . . 1 1 . . Garrison Registry 1 | . . . . . 1 . Fabricator Hacks . | . . . . . . . Repair Station Hacks 2 | . . . . 2 . . Scan Component 1 | . . . . 1 . . Repair 1 | . . . . 1 . . Recycling Unit Hacks . | . . . . . . . Scanalyzer 1 | . . . . 1 . . Insert Component 1 | . . . . 1 . . Garrison Access Hacks 1 | . . . . 1 . . Unlock Access 1 | . . . . 1 . . Unauthorized Hacks 1 | . . . 1 . . . Terminals . | . . . . . . . Fabricators . | . . . . . . . Repair Stations . | . . . . . . . Recycling Units 1 | . . . 1 . . . Mask 1 | . . . 1 . . . Scanalyzers . | . . . . . . . Garrison Access . | . . . . . . . Data Cores Recovered 1 | . . . 1 . . . Used 1 | . . . 1 . . . Hacking Detections 11 | . 1 . 3 3 2 2 Full Trace Events 2 | . . . 2 . . . Feedback Events . | . . . . . . . Feedback Blocked . | . . . . . . . Robot Schematics Acquired . | . . . . . . . Robots Built . | . . . . . . . Authchips . | . . . . . . . Time . | . . . . . . . Total Robot Build Rating . | . . . . . . . Part Schematics Acquired . | . . . . . . . Parts Built . | . . . . . . . Authchips . | . . . . . . . Time . | . . . . . . . Total Part Build Rating . | . . . . . . . Parts Repaired 1 | . . . . 1 . . Time 32 | . . . . 32 . . Parts Recycled . | . . . . . . . Recycled Matter . | . . . . . . . Retrieved Matter . | . . . . . . . Retrieved Components . | . . . . . . . Parts Scanalyzed 1 | . . . . 1 . . Part Schematics Acquired . | . . . . . . . Parts Damaged . | . . . . . . . Bothacking | -11 -10 -10 -9 -8 -8 -8 ------------ Run | Yrd Mat Min Mat Mat Gar Mat Used RIF Installer 1 | . . . . . 1 . Robots Hacked . | . . . . . . . Non-combat . | . . . . . . . Combat . | . . . . . . . Robot Hacks Applied . | . . . . . . . Relay Couplers Released 8 | . . . . . 8 . Machine Destruction 8 | . . . . . 8 . Attached 1 | . . . . . . 1 Fabnet Peak Effective % . | . . . . . . . Robots Rewired 9 | . . . . . 9 . Allies Hacked . | . . . . . . . Hacks Repelled . | . . . . . . . Allies | -11 -10 -10 -9 -8 -8 -8 -------- Run | Yrd Mat Min Mat Mat Gar Mat Total Allies 13 | . . 4 . . 9 . Largest Group 6 | . . 4 3 . 6 6 Highest-Rated Group 132 | . . 71 40 . 132 132 Highest-Rated Ally 31 | . . 31 16 . 31 31 Total Orders 2 | . . . . . 2 . STAY 1 | . . . . . 1 . FOLLOW 1 | . . . . . 1 . Ally Attacks 131 | . . 13 21 . 41 56 Total Damage 2216 | . . 128 214 . 873 1001 Kills 25 | . . 4 4 . 9 8 Allies Corrupted . | . . . . . . . Allies Melted . | . . . . . . . Intel | -11 -10 -10 -9 -8 -8 -8 ------- Run | Yrd Mat Min Mat Mat Gar Mat Active Infowar (turns) 4183 | . . . 378 1679 2036 90 Machine Analysis 4183 | . . . 378 1679 2036 90 Robot Analysis Total . | . . . . . . . Derelict Logs Recovered 1 | . . 1 . . . . Drone Launches . | . . . . . . . Drone Recoveries . | . . . . . . . Exploration | -11 -10 -10 -9 -8 -8 -8 ------------- Run | Yrd Mat Min Mat Mat Gar Mat Turns Passed 7431 | 46 616 660 1160 1679 2036 1234 Spaces Moved 4180 | 43 479 532 558 821 1201 546 Core 5 | 5 . . . . . . Treads . | . . . . . . . Legs 2900 | . . . 332 821 1201 546 Wheels 1275 | 38 479 532 226 . . . Hover . | . . . . . . . Flight . | . . . . . . . Fastest Speed 50 | 50 90 100 100 120 90 90 Average Speed 127 | 85 96 100 148 153 121 140 Slowest Speed 260 | 100 115 100 260 200 180 185 Overloaded Moves . | . . . . . . . Propulsion Burnouts . | . . . . . . . Robots Hopped . | . . . . . . . Potential Cave-ins . | . . . . . . . Cave-ins Triggered . | . . . . . . . Exploration Rate (%) 55 | 3 69 97 36 60 89 37 Regions Visited 6 Branch Regions 1 Pre-discovered Areas 1 | . . 1 . . . . Known Exits Taken 1 | . . . . 1 . . Unknown Exits Taken 4 | 1 1 1 1 . . . Scrap Searched 1 | . . 1 . . . . Spaces Dug 13 | . . . . 9 . 4 Terrain Destroyed 38 | . . . . 9 . 29 Melee . | . . . . . . . Projectile 31 | . . . . 9 . 22 AOE 7 | . . . . . . 7 Terrain Rammed . | . . . . . . . Walls Destroyed . | . . . . . . . Machines Disabled . | . . . . . . . Actions | -11 -10 -10 -9 -8 -8 -8 --------- Run | Yrd Mat Min Mat Mat Gar Mat Total 5440 | 49 567 651 764 1052 1515 842 Wait 619 | . 27 109 104 121 75 183 Move 4175 | 42 478 531 557 821 1200 546 Hop . | . . . . . . . Pick Up 43 | 1 14 4 7 1 11 5 Fast Attach 24 | 6 3 . 6 3 2 4 Attach 22 | . 3 . 2 3 7 7 Detach 1 | . . . . . . 1 Swap 69 | . 4 . 12 16 26 11 Drop 36 | . 1 2 11 7 15 . Fire 369 | . 34 5 65 80 103 82 Melee 2 | . 2 . . . . . Ram 1 | . 1 . . . . . Kick 3 | . . . . . . 3 Crush . | . . . . . . . Escape Stasis . | . . . . . . . Rewire 76 | . . . . . 76 . Trap . | . . . . . . . Miscellaneous . | . . . . . . . Route ------- -11/Scrapyard -10/Materials (discovered 4 exits: *Mat x2 / [*Min x2]) -10/Mines (discovered 2 exits: *Mat x2) -9/Materials (discovered 2 exits: *Mat / [*Min]) -8/Materials (discovered 5 exits: [*Fac x2] / [*Sto x2] / Gar) -8/Garrison (discovered 3 exits: *Mat x3) -8/Materials (discovered 1 exit: [*Sto]) History --------- Turn | Location | Event 18 | -11/Scrapyard | Discovered new exit (range 15) 47 | -11/Scrapyard | Entered Materials 47 | -10/Materials | Discovered new exit (range 8) 301 | -10/Materials | Discovered new exit (range 7) 302 | -10/Materials | Build established: Mutant 423 | -10/Materials | Discovered new exit (range 13) 507 | -10/Materials | Discovered new exit (range 16) 663 | -10/Materials | Entered Mines 805 | -10/Mines | Found a damaged Exp. Sensor Array with a note attached 807 | -10/Mines | Found Prototype Device 821 | -10/Mines | Assisted by bots powering up and referring to "LRC-V3" 828 | -10/Mines | Discovered new exit (range 8) 843 | -10/Mines | Received a Mining Laser from a helpful Derelict 993 | -10/Mines | Discovered new exit (range 12) 1323 | -10/Mines | Entered Materials 1323 | -9/Materials | Accompanied by 3 allies 1323 | -9/Materials | Evolved 2 slots: Propulsion x1, Utility x1 1708 | -9/Materials | Discovered new exit (range 5) 1787 | -9/Materials | Discovered new exit (range 16) 1889 | -9/Materials | Destroyed 8 combat bots 1896 | -9/Materials | Lost 3 parts (1p2u) 2210 | -9/Materials | Core integrity fell below 50% 2483 | -9/Materials | Entered another Materials area 2483 | -8/Materials | Evolved 2 slots: Propulsion x1, Weapon x1 2571 | -8/Materials | Discovered new exit (range 15) 2819 | -8/Materials | Build established: Tank 2925 | -8/Materials | Discovered new exit (range 16) 3096 | -8/Materials | Identified Exp. Sensor Array 3296 | -8/Materials | Discovered new exit (range 6) 3963 | -8/Materials | Repaired Beam Rifle 4149 | -8/Materials | Discovered new exit (range 12) 4162 | -8/Materials | Identified exit to Garrison 4162 | -8/Materials | Entered Garrison 4202 | -8/Garrison | Triggered checkpoint 4246 | -8/Garrison | Triggered checkpoint 4269 | -8/Garrison | Build established: Scavenger-Tank 4659 | -8/Garrison | Garrison Relay disabled 4734 | -8/Garrison | Triggered checkpoint 4972 | -8/Garrison | Triggered checkpoint 4993 | -8/Garrison | Discovered new exit (range 62) 4993 | -8/Garrison | Discovered new exit (range 24) 4993 | -8/Garrison | Discovered new exit (range 29) 5131 | -8/Garrison | Installed Relay Interface Framework 5348 | -8/Garrison | Build established: Commander-Skirmisher 5426 | -8/Garrison | Triggered checkpoint 5448 | -8/Garrison | Triggered checkpoint 5517 | -8/Garrison | Garrison Relay disabled 5536 | -8/Garrison | Triggered checkpoint 5853 | -8/Garrison | Build established: Scavenger-Skirmisher 6198 | -8/Garrison | Entered Materials 6198 | -8/Materials | Accompanied by 6 allies 6340 | -8/Materials | Core integrity fell below 50% 6350 | -8/Materials | Lost 5 parts (1n1u3w) 6380 | -8/Materials | Lost 6 allies 6397 | -8/Materials | Discovered new exit (range 16) 6407 | -8/Materials | Destroyed 7 combat bots 6593 | -8/Materials | Build established: Scavenger-Gunner 6860 | -8/Materials | Lost 3 parts (2n1w) 6998 | -8/Materials | First assault squad dispatched 7102 | -8/Materials | Build established: Gunner 7128 | -8/Materials | Destroyed 7 combat bots 7251 | -8/Materials | Core integrity fell below 20% 7267 | -8/Materials | Lost 3 parts (1p2n) 7287 | -8/Materials | Destroyed 7 combat bots 7432 | -8/Materials | Destroyed by L-31 Rogue with Katana Last Messages --------------- 07353_ Acquired 20 matter. 07354_ K-01 Serf collects debris. 07357_ Acquired Corrupted Adv. Heat Sink. 07358_ System corrupted: Matter fused (-6). 07358_ Acquired 6 matter. 07359_ K-01 Serf collects debris. 07376_ P6SAI:XV#P